bitfinex/quotes_BTCUSD_20220204
["timestamp","ask_amount","ask_price","bid_price","bid_amount"]
[1643958594067,0.05,37948.0,37947.0,0.61657257]
[1643958594365,0.05,37948.0,37947.0,0.39181907]
[1643958595568,0.0866213,37953.0,37947.0,0.39181907]
[1643958595768,0.05,37948.0,37947.0,0.04520238]
[1643958595970,0.05,37948.0,37947.0,0.39202638]
[1643958596169,0.05,37948.0,37947.0,0.04499507]
[1643958596811,0.05,37948.0,37947.0,0.39181907]
[1643958597116,0.0207193,37953.0,37947.0,0.39181907]
[1643958597312,0.396824,37952.0,37947.0,0.33958442]
[1643958598112,0.396824,37952.0,37948.0,0.00099453]
[1643958598313,0.396824,37952.0,37948.0,0.00120184]
[1643958598514,0.346824,37952.0,37948.0,0.00120184]
[1643958599114,0.346824,37952.0,37948.0,0.00020731]
[1643958599315,0.346824,37952.0,37948.0,0.00099452]
[1643958599717,0.346824,37952.0,37948.0,0.00120183]
[1643958600265,0.345354,37952.0,37948.0,0.00020731]
[1643958600464,0.345354,37952.0,37948.0,0.00099452]
[1643958600878,0.05,37949.0,37948.0,0.00120183]
[1643958601067,0.13691606,37953.0,37948.0,0.00120183]
[1643958601267,0.346828,37952.0,37948.0,0.00099452]
[1643958601468,0.346828,37952.0,37947.0,0.33958442]
[1643958601668,0.346828,37952.0,37948.0,0.00099452]
[1643958601869,0.396828,37952.0,37948.0,0.00120183]
[1643958602166,0.05,37950.0,37948.0,0.00120183]
[1643958602370,0.05,37950.0,37948.0,0.00099452]
[1643958602871,0.396828,37949.0,37947.0,0.04619691]
[1643958603068,0.346828,37948.0,37947.0,0.0459896]
[1643958603921,0.346828,37948.0,37947.0,0.04499507]
[1643958604819,0.06591,37952.0,37947.0,0.04499507]
[1643958604820,0.02031959,37953.0,37948.0,1.45]
[1643958605020,0.02031959,37953.0,37949.0,0.0527]
[1643958605217,0.02031959,37953.0,37950.0,0.346832]
[1643958605418,0.02031959,37953.0,37950.0,0.499532]
[1643958605619,0.02031959,37953.0,37951.0,0.21009546]
[1643958605819,0.33808242,37968.0,37954.0,1.45]
[1643958606023,0.22570671,37968.0,37957.0,0.05]
[1643958606219,0.50746939,37972.0,37967.0,0.42722567]
[1643958606422,0.33808242,37976.0,37967.0,0.42722567]
[1643958606423,0.22570671,37974.0,37967.0,0.42722567]
[1643958606820,0.22570671,37974.0,37973.0,1.08299956]
[1643958607021,0.22570671,37977.0,37971.0,0.30320467]
[1643958607222,0.260792,37976.0,37971.0,0.59066321]
[1643958607420,0.22570671,37977.0,37971.0,0.40320467]
[1643958607678,1.20957069,37983.0,37971.0,0.40320467]
[1643958607679,0.00046159,37975.0,37973.0,0.346832]
[1643958607873,0.00046159,37975.0,37974.0,2.40112823]
[1643958608070,0.00046159,37975.0,37974.0,1.00112823]
[1643958608268,0.00046159,37975.0,37974.0,0.81366969]
[1643958608671,0.22570671,37982.0,37974.0,0.81366969]
[1643958608869,0.22570671,37982.0,37974.0,0.46683769]
[1643958609068,0.00046159,37976.0,37975.0,0.05]
[1643958609270,0.00046159,37976.0,37975.0,0.396832]
[1643958609669,0.00046159,37976.0,37975.0,0.496832]
[1643958609871,0.22570671,37985.0,37975.0,0.496832]
[1643958610070,0.00099481,37977.0,37975.0,0.41894719]
[1643958610274,0.00099481,37977.0,37976.0,0.346832]
[1643958610672,0.00099481,37977.0,37969.0,0.0527]
[1643958610673,0.75441827,37975.0,37969.0,0.0527]
[1643958610871,0.05,37972.0,37970.0,0.79006]
[1643958611072,0.05,37972.0,37971.0,0.346832]
[1643958611271,0.05,37973.0,37971.0,0.346832]
[1643958611527,0.2752194,37972.0,37970.0,0.53335791]
[1643958611726,0.00099487,37973.0,37970.0,0.53335791]
[1643958611927,0.05,37972.0,37971.0,0.346694]
[1643958612525,0.05,37972.0,37971.0,0.346594]
[1643958613326,0.05,37972.0,37971.0,0.396594]
[1643958613529,0.30100918,37973.0,37971.0,0.39599347]
[1643958613727,0.30200404,37973.0,37971.0,0.04939947]
[1643958613929,0.30200404,37973.0,37972.0,0.346693]
[1643958614528,0.30200404,37973.0,37972.0,0.346593]
[1643958614728,0.05,37974.0,37972.0,0.346593]
[1643958614930,0.05099485,37974.0,37972.0,0.346593]
[1643958615172,0.05099485,37974.0,37972.0,0.396593]
[1643958615974,0.05,37974.0,37972.0,0.05]
[1643958616172,0.05,37974.0,37973.0,0.346689]
[1643958616373,0.05,37974.0,37973.0,0.346589]
[1643958617373,0.047,37974.0,37972.0,0.0003551]
[1643958617574,0.047,37973.0,37972.0,0.0003551]
[1643958618373,0.237439,37976.0,37972.0,0.0003551]
[1643958618573,0.04610465,37973.0,37972.0,0.0003551]
[1643958618775,0.04610465,37973.0,37972.0,0.0002551]
[1643958619422,0.04610465,37973.0,37972.0,0.3469441]
[1643958619621,0.04610465,37973.0,37972.0,0.0002551]
[1643958620122,0.04610465,37973.0,37972.0,0.3469441]
[1643958620323,0.04610465,37973.0,37972.0,0.40083945]
[1643958620520,0.04610465,37973.0,37972.0,0.65540611]
[1643958620724,0.22570671,37982.0,37972.0,0.65540611]
[1643958620920,0.04610465,37973.0,37972.0,0.30482176]
[1643958621123,0.04610465,37973.0,37972.0,0.65151076]
[1643958621723,0.00099485,37974.0,37972.0,1.13004688]
[1643958621923,0.04610465,37982.0,37973.0,1.5791488]
[1643958622223,0.39279365,37982.0,37978.0,0.00389535]
[1643958622424,0.04610465,37979.0,37978.0,0.00389535]
[1643958622872,0.04610465,37981.0,37978.0,0.05]
[1643958623071,0.04610465,37979.0,37978.0,0.0499]
[1643958623275,0.04610465,37979.0,37977.0,0.00389535]
[1643958623672,0.04610465,37980.0,37978.0,0.23883984]
[1643958623973,0.00099475,37981.0,37975.0,0.00389535]
[1643958624172,0.04610465,37977.0,37976.0,0.346689]
[1643958624574,0.26681136,37988.0,37986.0,0.33684016]
[1643958624775,0.003,37990.0,37987.0,0.10659535]
[1643958624975,0.003,37990.0,37989.0,0.55389535]
[1643958625173,0.003,37990.0,37989.0,0.70082065]
[1643958625374,0.003,37990.0,37989.0,0.55328435]
[1643958625575,0.003,37990.0,37989.0,0.82254884]
[1643958626524,0.003,37990.0,37989.0,1.20197066]
[1643958628125,0.003,37990.0,37989.0,1.19937375]
[1643958628826,0.003,37990.0,37989.0,0.81995193]
[1643958629026,0.003,37990.0,37989.0,0.40328435]
[1643958629330,0.003,37990.0,37989.0,0.346689]
[1643958629331,0.04910465,37990.0,37989.0,0.346689]
[1643958629727,0.34241863,37990.0,37989.0,0.346689]
[1643958629926,0.34241863,37990.0,37985.0,0.00389535]
[1643958629927,0.68910763,37990.0,37985.0,0.00389535]
[1643958630174,0.04610465,37986.0,37985.0,0.00389535]
[1643958630374,0.04610465,37986.0,37985.0,0.346689]
[1643958630775,0.04610465,37986.0,37978.0,0.29828216]
[1643958630980,0.32036947,37979.0,37978.0,0.02017864]
[1643958631182,0.04610465,37979.0,37978.0,1.15678764]
[1643958631773,0.04610465,37979.0,37978.0,1.136609]
[1643958632175,0.00099551,37980.0,37978.0,1.136609]
[1643958632377,0.00099551,37980.0,37979.0,0.35058435]
[1643958632576,0.00099551,37980.0,37979.0,0.61208611]
[1643958632577,0.00050411,37980.0,37979.0,0.61208611]
[1643958632777,0.04610465,37987.0,37979.0,0.61208611]
[1643958633076,0.7983,37990.0,37983.0,0.346689]
[1643958633278,0.04610465,37985.0,37983.0,0.05]
[1643958633482,0.04610465,37985.0,37984.0,0.346689]
[1643958633679,0.28982916,37985.0,37984.0,0.346689]
[1643958633928,0.28982916,37985.0,37978.0,0.83992]
[1643958634221,0.24372451,37985.0,37980.0,0.396689]
[1643958634419,0.04610465,37981.0,37980.0,0.396689]
[1643958634820,0.28982916,37985.0,37980.0,0.396689]
[1643958635020,0.28982916,37985.0,37982.0,0.346689]
[1643958635420,0.29082497,37985.0,37982.0,0.346689]
[1643958635820,0.29082497,37985.0,37984.0,0.00389535]
[1643958636220,0.29082497,37985.0,37984.0,0.40058435]
[1643958636420,0.28982916,37985.0,37984.0,0.40058435]
[1643958636619,0.28982916,37985.0,37984.0,0.05389535]
[1643958636819,0.28982916,37985.0,37984.0,0.35058435]
[1643958637020,0.28982916,37985.0,37984.0,0.00389535]
[1643958637220,0.28982916,37985.0,37984.0,0.346689]
[1643958637425,0.28982916,37985.0,37984.0,0.35058435]
[1643958637686,0.28982916,37985.0,37984.0,0.6031154]
[1643958637887,0.28982916,37985.0,37984.0,0.05389535]
[1643958638087,0.28982916,37985.0,37984.0,0.40058435]
[1643958638888,0.04610465,37985.0,37984.0,0.40058435]
[1643958639088,0.04610465,37985.0,37984.0,0.59654907]
[1643958640289,0.04610465,37985.0,37984.0,0.24986007]
[1643958640490,0.04610465,37985.0,37984.0,0.05]
[1643958640689,0.04610465,37985.0,37984.0,0.05389535]
[1643958640890,0.04610465,37985.0,37984.0,0.00389535]
[1643958641196,0.88595446,37990.0,37984.0,0.35058435]
[1643958641197,0.003,37990.0,37984.0,0.35058435]
[1643958641443,0.003,37990.0,37989.0,0.35058435]
[1643958641724,0.003,37990.0,37989.0,0.346627]
[1643958641924,0.003,37990.0,37989.0,0.446627]
[1643958642126,0.003,37990.0,37989.0,0.69825309]
[1643958642826,0.003,37990.0,37989.0,0.446627]
[1643958643427,0.003,37990.0,37989.0,0.72252161]
[1643958643626,0.003,37990.0,37989.0,0.70694694]
[1643958643830,0.003,37990.0,37989.0,0.96765349]
[1643958644628,0.00099572,37991.0,37990.0,1.45]
[1643958644829,0.01,37999.0,37991.0,1.45]
[1643958645032,0.58925343,38008.0,37990.0,1.921172]
[1643958645033,0.22510776,38007.0,37996.0,0.2]
[1643958645285,0.22510776,38013.0,38004.0,0.011421]
[1643958645477,0.051,38015.0,38005.0,0.0527]
[1643958645676,0.051,38015.0,38006.0,1.135801]
[1643958645879,0.051,38015.0,38008.0,1.58002551]
[1643958645880,0.00033702,38014.0,38008.0,1.58002551]
[1643958646078,0.00033702,38014.0,38008.0,1.41384871]
[1643958646277,0.00033702,38014.0,38008.0,1.56384871]
[1643958647476,0.00099658,38010.0,38008.0,1.56384871]
[1643958647878,0.00099658,38010.0,38008.0,1.003428]
[1643958648077,0.00099658,38010.0,38008.0,1.28441906]
[1643958648480,0.05,38010.0,38008.0,0.950728]
[1643958648678,0.05099658,38010.0,38008.0,0.83931]
[1643958648937,0.05099658,38010.0,38008.0,0.78931]
[1643958648938,0.4304302,38009.0,38008.0,0.78931]
[1643958649133,0.356627,38009.0,38008.0,0.78931]
[1643958649526,0.356627,38009.0,38008.0,1.02385386]
[1643958649729,0.01,38009.0,38008.0,1.37048086]
[1643958649928,0.00984925,38009.0,38008.0,1.37048086]
[1643958650129,0.00984925,38009.0,38008.0,1.42048086]
[1643958650529,0.00984925,38009.0,38008.0,1.52048086]
[1643958650730,0.00984925,38009.0,38008.0,1.42048086]
[1643958650928,0.00984925,38009.0,38008.0,1.07385386]
[1643958651129,0.00984925,38009.0,38008.0,1.52048086]
[1643958651329,0.00984925,38009.0,38008.0,1.22385386]
[1643958651528,0.00984925,38009.0,38008.0,1.57048086]
[1643958652877,0.00984925,38009.0,38008.0,1.22385386]
[1643958653078,0.00984925,38009.0,38008.0,2.46332054]
[1643958653277,0.00984925,38009.0,38008.0,2.46331954]
[1643958653479,0.00984925,38009.0,38008.0,2.78792185]
[1643958653679,0.00984925,38009.0,38008.0,2.46331754]
[1643958654081,0.05984925,38009.0,38008.0,2.02877268]
[1643958654285,0.05984925,38009.0,38008.0,1.27500614]
[1643958654480,0.05984925,38009.0,38008.0,0.92838314]
[1643958654780,0.40647625,38009.0,38008.0,0.92838314]
[1643958656525,0.05984925,38009.0,38008.0,1.32501014]
[1643958657825,0.05984925,38009.0,38008.0,1.27501014]
[1643958658325,0.05984925,38009.0,38008.0,0.92838314]
[1643958659827,1.35,38008.0,38006.0,0.0001551]
[1643958660027,0.449327,38007.0,38006.0,0.0001551]
[1643958660284,0.09191017,37998.0,37997.0,0.0184005]
[1643958660485,0.48853717,37998.0,37997.0,0.0184005]
[1643958660683,0.72475535,37998.0,37997.0,0.0184005]
[1643958661782,0.97615015,37998.0,37997.0,0.0184005]
[1643958662387,0.97615015,37998.0,37985.0,0.02186964]
[1643958662388,0.08851278,37986.0,37985.0,0.02186964]
[1643958662587,0.13851278,37986.0,37985.0,0.36849664]
[1643958662785,0.13851278,37986.0,37985.0,0.02186964]
[1643958663285,0.44091498,37986.0,37985.0,0.02186964]
[1643958663587,0.78754198,37986.0,37985.0,0.02186964]
[1643958663787,0.6990292,37986.0,37985.0,0.02186964]
[1643958665023,0.77991633,37986.0,37985.0,0.02186964]
[1643958665424,0.6990292,37986.0,37985.0,0.02186964]
[1643958666526,0.7742182,37986.0,37985.0,0.02186964]
[1643958667129,0.6990292,37986.0,37985.0,0.02186964]
[1643958668078,0.346627,37985.0,37983.0,0.00099751]
[1643958668277,0.42239982,37985.0,37983.0,0.00099751]
[1643958668577,0.396627,37984.0,37983.0,0.00099751]
[1643958668977,0.346627,37983.0,37980.0,0.002197]
[1643958669177,0.346627,37983.0,37982.0,0.00099752]
[1643958669379,0.396627,37983.0,37982.0,0.00099752]
[1643958670280,0.39647615,37983.0,37981.0,0.00209754]
[1643958671280,0.05,37983.0,37981.0,0.0011]
[1643958671726,0.05,37983.0,37976.0,0.05]
[1643958671929,0.23180318,37985.0,37978.0,0.21449935]
[1643958672126,0.05,37980.0,37979.0,0.011691]
[1643958672330,0.05,37980.0,37973.0,0.42598047]
[1643958672528,0.05,37980.0,37975.0,0.346643]
[1643958673029,0.35400492,37989.0,37975.0,0.346643]
[1643958673030,0.30313182,37991.0,37975.0,0.446643]
[1643958673232,0.05,37984.0,37979.0,0.45616029]
[1643958673429,0.05,37984.0,37980.0,0.346643]
[1643958673827,0.05,37984.0,37980.0,0.446643]
[1643958674029,0.05,37984.0,37983.0,0.20280785]
[1643958674231,0.05,37984.0,37983.0,0.05]
[1643958674630,0.05,37984.0,37979.0,0.50616029]
[1643958674834,0.05,37984.0,37979.0,0.55616029]
[1643958675030,0.05,37984.0,37981.0,0.346643]
[1643958675274,0.0509966,37987.0,37985.0,0.34849489]
[1643958675474,0.0509966,37987.0,37986.0,0.01165]
[1643958675475,0.0009966,37987.0,37986.0,0.01165]
[1643958675674,0.0009966,37987.0,37986.0,0.06165]
[1643958676073,0.05,37993.0,37986.0,0.01165]
[1643958676279,0.27844151,37993.0,37986.0,0.21352719]
[1643958676576,0.00099663,37988.0,37986.0,0.21352719]
[1643958677377,0.27844151,37993.0,37987.0,0.29993125]
[1643958677574,0.00099663,37989.0,37987.0,0.29993125]
[1643958677776,0.00099663,37989.0,37988.0,0.346643]
[1643958677974,0.00099663,37989.0,37988.0,0.64163634]
[1643958678174,0.00099663,37989.0,37988.0,0.79163634]
[1643958678576,0.07055084,37993.0,37988.0,0.87642634]
[1643958678779,0.02055084,37993.0,37991.0,0.29040005]
[1643958679044,0.02055084,37993.0,37992.0,0.35322237]
[1643958679245,0.02055084,37993.0,37992.0,0.40592237]
[1643958679443,0.02055084,37993.0,37992.0,0.50592237]
[1643958679843,0.05,37993.0,37992.0,0.064274]
[1643958680047,0.05,37993.0,37992.0,0.011574]
[1643958680242,0.05,37993.0,37988.0,0.08479]
[1643958680243,0.396643,37993.0,37988.0,0.13479]
[1643958680444,0.05,37993.0,37989.0,0.346643]
[1643958680646,0.05,37993.0,37990.0,0.25751973]
[1643958680845,0.05,37993.0,37992.0,0.25086751]
[1643958681049,0.05,37993.0,37992.0,0.36240751]
[1643958681246,0.05099656,37993.0,37992.0,0.36240751]
[1643958681445,0.05099656,37993.0,37992.0,0.16154]
[1643958681645,0.05099656,37993.0,37992.0,0.06154]
[1643958681845,0.00099656,37993.0,37990.0,0.46768013]
[1643958682047,0.00099656,37993.0,37991.0,0.346643]
[1643958682246,0.05,37996.0,37990.0,0.46768013]
[1643958682247,0.05,37996.0,37992.0,0.26310337]
[1643958682449,0.00099656,37993.0,37991.0,0.50955075]
[1643958682684,0.00099656,37993.0,37992.0,0.60490829]
[1643958682878,0.00099656,37993.0,37992.0,0.80490829]
[1643958683279,0.05,37997.0,37992.0,0.80490829]
[1643958683484,0.05,37993.0,37992.0,0.2]
[1643958683680,0.05,37993.0,37992.0,0.546643]
[1643958683881,0.00099655,37994.0,37992.0,0.546643]
[1643958684081,0.00099655,37994.0,37993.0,0.01153]
[1643958684280,0.00099655,37994.0,37992.0,0.1]
[1643958684480,0.28233518,37998.0,37992.0,0.05]
[1643958684680,0.00099654,37995.0,37992.0,0.05]
[1643958685083,0.05,37994.0,37992.0,0.05]
[1643958685683,0.05,37996.0,37992.0,0.05]
[1643958686083,0.00099654,37995.0,37992.0,0.05]
[1643958686283,0.00099654,37995.0,37992.0,0.30741697]
[1643958686532,0.00099654,37995.0,37992.0,0.31418983]
[1643958686734,0.00099654,37995.0,37992.0,0.15]
[1643958686932,0.05,37996.0,37992.0,0.15]
[1643958687130,0.00099653,37995.0,37992.0,0.2]
[1643958687932,0.05,37993.0,37992.0,0.05]
[1643958688229,0.05,37993.0,37991.0,0.15]
[1643958688431,0.05,37993.0,37991.0,0.346643]
[1643958688628,0.05,37993.0,37991.0,0.60613502]
[1643958688831,0.05,37993.0,37991.0,0.35949202]
[1643958689030,0.05,37993.0,37992.0,0.346643]
[1643958689231,0.25834481,37998.0,37992.0,0.446643]
[1643958689433,0.05,37995.0,37992.0,0.2]
[1643958689633,0.04953441,37994.0,37992.0,0.40869105]
[1643958689832,0.04953441,37994.0,37992.0,0.45974245]
[1643958690288,0.04953441,37994.0,37992.0,0.2]
[1643958690689,0.04953441,37994.0,37992.0,0.05]
[1643958691290,0.27882137,37998.0,37992.0,0.05]
[1643958691291,0.27882137,37998.0,37993.0,0.00046559]
[1643958691490,0.04953441,37997.0,37992.0,0.05]
[1643958691988,0.2770177,37998.0,37992.0,0.05]
[1643958692189,0.04953441,37995.0,37992.0,0.05]
[1643958692390,0.04953441,37995.0,37994.0,0.00046559]
[1643958692591,0.04953441,37995.0,37992.0,0.05]
[1643958692996,0.2770177,37998.0,37992.0,0.0374]
[1643958693194,0.2770177,37998.0,37988.0,0.08479]
[1643958693195,0.04953441,37993.0,37988.0,0.08479]
[1643958693396,0.04953441,37996.0,37992.0,0.00046559]
[1643958693596,0.04953441,37996.0,37991.0,0.065814]
[1643958693796,0.04953441,37997.0,37995.0,0.00046559]
[1643958694038,0.04953441,37997.0,37996.0,0.00046559]
[1643958695835,0.03922716,37997.0,37996.0,0.01077284]
[1643958696234,0.25934253,37998.0,37996.0,0.01077284]
[1643958696437,0.03922716,37997.0,37996.0,0.01077284]
[1643958697237,0.38587016,37997.0,37992.0,0.2]
[1643958697440,0.88587016,37993.0,37988.0,0.18479]
[1643958697682,0.88587016,37993.0,37988.0,0.08479]
[1643958697683,0.03922716,37989.0,37988.0,0.08479]
[1643958697882,0.03922716,37989.0,37988.0,0.431433]
[1643958698286,0.03922716,37989.0,37988.0,0.69247506]
[1643958698982,0.03922716,37989.0,37988.0,0.74247506]
[1643958699182,0.03922716,37989.0,37988.0,0.7532479]
[1643958700383,0.03922716,37989.0,37988.0,0.6684579]
[1643958701830,0.26543196,37993.0,37988.0,0.34665163]
[1643958702032,0.03922716,37992.0,37991.0,0.01077284]
[1643958702731,0.30285984,37992.0,37988.0,0.05]
[1643958702931,0.03922716,37992.0,37988.0,0.05]
[1643958703132,0.03922716,37990.0,37988.0,0.066104]
[1643958704334,0.03922716,37990.0,37988.0,0.07687684]
[1643958704735,0.28542063,37994.0,37988.0,0.17687684]
[1643958704934,0.06031287,37994.0,37993.0,0.01077284]
[1643958705896,0.06031287,37994.0,37993.0,0.23291574]
[1643958706192,0.03922716,37994.0,37993.0,0.33291574]
[1643958706393,0.03922716,37994.0,37993.0,0.44368858]
[1643958707192,0.03922716,37994.0,37993.0,0.05]
[1643958707394,0.03922716,37994.0,37993.0,0.2]
[1643958708295,0.03922716,37994.0,37993.0,0.1]
[1643958708499,0.03922716,37994.0,37993.0,0.05]
[1643958708933,0.03922716,37994.0,37992.0,0.29710139]
[1643958709331,0.03922716,37994.0,37992.0,0.05]
[1643958709532,0.65628356,37993.0,37988.0,0.05]
[1643958709732,0.65628356,37993.0,37983.0,0.131646]
[1643958709733,0.03922716,37989.0,37984.0,0.1]
[1643958709931,0.22510776,37994.0,37986.0,0.01171895]
[1643958710136,0.1139184,37987.0,37986.0,0.07783195]
[1643958710333,0.03922716,37987.0,37986.0,0.06705911]
[1643958710532,0.03922716,37987.0,37986.0,0.00094611]
[1643958710533,0.38585516,37987.0,37986.0,0.00094611]
[1643958710931,0.38585516,37987.0,37982.0,0.06077284]
[1643958711136,0.03922716,37987.0,37985.0,0.00094608]
[1643958711332,0.346628,37986.0,37985.0,0.00094608]
[1643958711535,0.33922716,37986.0,37985.0,0.01171892]
[1643958711733,0.03922716,37986.0,37985.0,0.01171892]
[1643958712133,0.03922716,37986.0,37985.0,0.01077284]
[1643958712983,0.01997841,37990.0,37985.0,0.01077284]
[1643958713183,0.346628,37989.0,37987.0,0.01077284]
[1643958713384,0.03922716,37988.0,37987.0,0.01077284]
[1643958714185,0.03922716,37988.0,37986.0,0.01171891]
[1643958714383,0.03922716,37988.0,37986.0,0.00094607]
[1643958714584,0.03922716,37988.0,37983.0,0.01077284]
[1643958714784,0.03922716,37988.0,37985.0,0.00094608]
[1643958714986,0.03922716,37986.0,37985.0,0.00094608]
[1643958715486,0.03922716,37986.0,37985.0,0.01171892]
[1643958715683,0.03922716,37986.0,37985.0,0.01077284]
[1643958715884,0.30370136,37986.0,37985.0,0.01077284]
[1643958716084,0.30370136,37986.0,37984.0,0.0009461]
[1643958716534,0.30370136,37986.0,37984.0,0.01171894]
[1643958716732,0.30370136,37986.0,37984.0,0.0009461]
[1643958716934,0.30370136,37986.0,37982.0,0.01077284]
[1643958717131,0.2644742,37986.0,37983.0,0.06706711]
[1643958717332,0.03922716,37984.0,37983.0,0.06706711]
[1643958717633,0.57719513,37984.0,37983.0,0.06206711]
[1643958717832,0.57719513,37984.0,37983.0,0.00094611]
[1643958717833,0.27719513,37984.0,37983.0,0.00094611]
[1643958718233,0.27719513,37984.0,37982.0,0.01077284]
[1643958718533,0.27719513,37984.0,37982.0,0.01171897]
[1643958718733,0.27719513,37984.0,37982.0,0.00094613]
[1643958718935,0.03922716,37984.0,37982.0,0.00094613]
[1643958719132,0.03922716,37984.0,37983.0,0.01077284]
[1643958720783,0.03017651,37984.0,37983.0,0.01982349]
[1643958720984,0.23403088,37985.0,37983.0,0.01982349]
[1643958721384,0.03017651,37984.0,37982.0,0.00094613]
[1643958721784,0.03017651,37984.0,37981.0,0.01982349]
[1643958721984,0.03017651,37984.0,37981.0,0.02076963]
[1643958722585,0.02917651,37984.0,37981.0,0.02176963]
[1643958722984,0.02917651,37982.0,37981.0,0.02082349]
[1643958723284,0.02917651,37982.0,37981.0,0.08289663]
[1643958723484,0.02917651,37982.0,37981.0,0.13289663]
[1643958723941,0.02917651,37984.0,37982.0,0.05]
[1643958724334,0.02887783,37983.0,37982.0,0.05]
[1643958725036,0.02887783,37985.0,37982.0,0.05]
[1643958725335,0.02887783,37985.0,37984.0,0.22064834]
[1643958725834,0.02887783,37985.0,37984.0,0.32064834]
[1643958726236,0.02887783,37987.0,37984.0,0.42064834]
[1643958726436,0.02887783,37986.0,37984.0,0.42064834]
[1643958726638,0.01885058,37989.0,37984.0,0.42064834]
[1643958726835,0.01885058,37989.0,37984.0,0.42118713]
[1643958727438,0.02887783,37988.0,37984.0,0.41512713]
[1643958727688,0.02887783,37988.0,37984.0,0.27064834]
[1643958727888,0.02887783,37988.0,37984.0,0.37118712]
[1643958728291,0.22510776,37992.0,37987.0,0.02112217]
[1643958728490,0.24592623,37994.0,37991.0,0.02112217]
[1643958728689,0.0496963,37994.0,37993.0,0.02112217]
[1643958728892,0.02081847,37994.0,37993.0,0.02112217]
[1643958729091,0.02081847,37994.0,37993.0,0.26424498]
[1643958729293,0.02081847,37994.0,37993.0,0.31424498]
[1643958729688,0.02081847,37994.0,37993.0,0.41424498]
[1643958730090,0.02887783,37995.0,37993.0,0.41424498]
[1643958730490,0.02887783,37995.0,37993.0,0.39312281]
[1643958730891,0.02887783,37995.0,37993.0,0.15]
[1643958731297,0.33265726,37995.0,37992.0,0.118517]
[1643958731534,0.02887783,37993.0,37992.0,0.0527]
[1643958731838,0.21982087,37996.0,37990.0,0.25913765]
[1643958732033,0.05,37993.0,37991.0,0.0527]
[1643958733231,0.05,37993.0,37991.0,0.118516]
[1643958733434,0.05,37993.0,37992.0,0.061098]
[1643958733633,0.21606589,37998.0,37991.0,0.115816]
[1643958733832,0.346633,37997.0,37991.0,0.240536]
[1643958734032,0.02041888,37997.0,37991.0,0.240536]
[1643958734535,0.02041888,37997.0,37991.0,0.17472]
[1643958735183,0.26779159,37993.0,37991.0,0.12472]
[1643958735384,0.26779159,37993.0,37990.0,0.05]
[1643958735385,0.347917,37993.0,37990.0,0.05]
[1643958735684,0.346633,37992.0,37983.0,0.065833]
[1643958735883,0.347917,37993.0,37983.0,0.115833]
[1643958736084,0.346633,37992.0,37983.0,0.065833]
[1643958736286,0.346633,37992.0,37983.0,0.061117]
[1643958736287,0.25149186,37984.0,37983.0,0.061117]
[1643958736785,0.25149186,37984.0,37978.0,0.061132]
[1643958737289,0.23011106,37983.0,37980.0,0.061132]
[1643958737685,0.23011106,37983.0,37980.0,0.056132]
[1643958738787,0.23011106,37983.0,37980.0,0.05713124]
[1643958739836,0.23011106,37983.0,37980.0,0.056132]
[1643958740033,0.23011106,37983.0,37980.0,0.05713124]
[1643958740934,0.01912598,37986.0,37980.0,0.056132]
[1643958741135,0.01912598,37986.0,37980.0,0.00099924]
[1643958741335,0.01912598,37986.0,37980.0,0.05099924]
[1643958741734,0.01912598,37986.0,37980.0,0.00099924]
[1643958741935,0.25092519,37984.0,37982.0,0.26127105]
[1643958742135,0.25092519,37984.0,37980.0,0.056129]
[1643958742340,0.25092519,37984.0,37981.0,0.00099922]
[1643958742982,0.346633,37983.0,37981.0,0.00099922]
[1643958743381,0.25092519,37984.0,37978.0,0.065841]
[1643958743584,0.25092519,37984.0,37980.0,0.00054037]
[1643958743585,0.346633,37983.0,37980.0,0.00054037]
[1643958744584,0.346633,37983.0,37978.0,0.065841]
[1643958744785,0.25092519,37984.0,37980.0,0.00054037]
[1643958745385,0.24521923,37984.0,37980.0,0.00054037]
[1643958745787,0.24521923,37984.0,37977.0,0.05]
[1643958745987,0.24521923,37984.0,37980.0,0.00099971]
[1643958746187,0.24521923,37984.0,37980.0,0.06684371]
[1643958746439,0.346633,37983.0,37980.0,0.06684371]
[1643958747031,0.346633,37983.0,37980.0,0.065844]
[1643958747231,0.10230179,37981.0,37980.0,0.06684372]
[1643958748033,0.346633,37983.0,37980.0,0.06684372]
[1643958748232,0.346633,37983.0,37980.0,0.065844]
[1643958749433,0.43863925,37983.0,37980.0,0.065844]
[1643958749633,0.43863925,37983.0,37980.0,0.06684372]
[1643958750485,0.09200625,37983.0,37980.0,0.065844]
[1643958750685,0.24521923,37984.0,37980.0,0.06684372]
[1643958750884,0.01854892,37986.0,37980.0,0.06684372]
[1643958751288,0.01854892,37986.0,37985.0,0.05]
[1643958751688,0.01723797,37986.0,37985.0,0.05]
[1643958751887,0.01723797,37986.0,37985.0,0.36592148]
[1643958752086,0.01723797,37986.0,37985.0,0.41592148]
[1643958752288,0.32984812,37991.0,37985.0,0.41592148]
[1643958752488,0.32984812,37991.0,37987.0,0.115826]
[1643958752891,0.32984812,37991.0,37987.0,0.165826]
[1643958753087,0.32984812,37991.0,37987.0,0.16682561]
[1643958753489,0.32984812,37991.0,37987.0,0.11682561]
[1643958753688,0.32984812,37991.0,37987.0,0.06682561]
[1643958753938,0.01981259,37991.0,37988.0,0.05]
[1643958754134,0.01981259,37991.0,37987.0,0.11682561]
[1643958754135,0.01981259,37991.0,37987.0,0.115826]
[1643958754333,0.7414,37992.0,37988.0,0.0009996]
[1643958754733,0.7414,37992.0,37991.0,0.22087988]
[1643958754934,0.346633,37992.0,37991.0,0.065823]
[1643958755736,0.02055076,37993.0,37991.0,0.115823]
[1643958755935,0.02055076,37993.0,37992.0,0.28056779]
[1643958756135,0.02055076,37993.0,37992.0,0.2654325]
[1643958756335,0.01912975,37996.0,37992.0,0.2654325]
[1643958756536,0.01912975,37996.0,37995.0,0.05]
[1643958756937,0.01912975,37996.0,37995.0,0.1]
[1643958757338,0.01912975,37996.0,37995.0,0.05]
[1643958757538,0.36576275,37996.0,37995.0,0.05]
[1643958757786,0.01912975,37996.0,37995.0,0.05]
[1643958758188,0.346633,37996.0,37994.0,0.00099952]
[1643958758586,0.56493054,37996.0,37994.0,0.00099952]
[1643958758986,0.56493054,37996.0,37993.0,0.05]
[1643958759185,0.56493054,37996.0,37993.0,0.05099953]
[1643958759388,0.56493054,37996.0,37993.0,0.00099953]